bitfinex-derivatives/quotes_ETHF0:USTF0_20260306
["timestamp","ask_amount","ask_price","bid_price","bid_amount"]
[1772811558734,3.59650176,1992.0,1991.0,3.54174617]
[1772811558940,3.59650176,1991.8,1991.0,3.54174617]
[1772811559134,3.59650176,1992.0,1991.0,3.54174617]
[1772811559740,3.60282055,1992.2,1991.0,3.54174617]
[1772811560542,0.00631879,1992.2,1991.0,3.54174617]
[1772811560743,3.60282055,1992.2,1991.0,3.54174617]
[1772811561344,3.59650176,1992.1,1991.0,3.54174617]
[1772811562140,6.58131879,1992.2,1991.0,3.79284617]
[1772811562141,0.00631879,1992.2,1991.0,3.79284617]
[1772811563045,0.00631879,1992.2,1991.5,3.54174617]
[1772811563247,8.61700753,1992.5,1991.5,3.54174617]
[1772811563543,3.59650176,1992.4,1991.5,3.54174617]
[1772811563739,3.59650176,1992.4,1991.3,3.54174617]
[1772811564241,0.251,1992.0,1990.8,3.54174617]
[1772811564543,3.59650176,1991.8,1990.8,3.54174617]
[1772811565134,10.17250176,1991.8,1990.8,3.54174617]
[1772811565340,3.59650176,1991.8,1990.8,3.54174617]
[1772811566236,3.59650176,1991.6,1990.5,3.54174617]
[1772811566937,3.59650176,1991.8,1990.5,3.54174617]
[1772811567142,10.17250176,1991.7,1990.5,3.54174617]
[1772811567343,3.59650176,1991.6,1990.5,3.54174617]
[1772811567944,3.59650176,1992.1,1990.7,3.54174617]
[1772811568248,3.59650176,1991.8,1990.7,3.54174617]
[1772811569641,3.59650176,1992.3,1990.9,3.54174617]
[1772811570048,3.84746176,1992.3,1990.9,3.54174617]
[1772811570646,3.59650176,1992.1,1990.9,3.54174617]
[1772811570947,3.59650176,1992.2,1990.9,3.54174617]
[1772811571145,3.59650176,1992.1,1990.9,3.54174617]
[1772811572946,3.38666468,1992.4,1991.3,3.29049919]
[1772811573444,3.38666468,1992.4,1991.5,3.29049919]
[1772811573647,0.00642884,1992.4,1991.5,3.29049919]
[1772811573943,0.00642884,1992.4,1991.7,3.29049919]
[1772811574146,3.38023584,1992.8,1991.9,3.29049919]
[1772811575147,3.38479254,1992.8,1991.9,3.2958094]
[1772811575744,0.0045567,1992.8,1991.9,3.2958094]
[1772811576447,3.38479254,1992.8,1991.9,3.2958094]
[1772811578951,3.38023584,1992.6,1991.9,0.00531021]
[1772811579151,3.38023584,1992.6,1991.9,3.2958094]
[1772811579346,0.0045567,1992.8,1992.0,3.54147919]
[1772811579544,0.25085,1993.2,1991.9,6.11543489]
[1772811579545,3.63108584,1993.2,1991.9,6.11543489]
[1772811579747,0.25101,1991.9,1990.8,3.59315642]
[1772811579947,6.82601,1991.9,1990.8,3.59315642]
[1772811580649,8.23787912,1991.9,1990.8,3.59750325]
[1772811581351,1.3785306,1991.8,1990.8,3.59750325]
[1772811582054,1.37483642,1991.6,1990.8,3.59750325]
[1772811582653,1.47801667,1991.9,1990.8,3.59750325]
[1772811583054,1.72902667,1991.9,1990.8,3.59750325]
[1772811583956,1.47801667,1991.9,1990.8,3.59750325]
[1772811585151,0.00586405,1991.9,1990.8,3.59750325]
[1772811585750,1.67981324,1991.7,1990.2,3.58221155]
[1772811585955,1.67987324,1991.3,1990.2,3.58221155]
[1772811586853,1.67987324,1991.3,1990.2,3.58705401]
[1772811587056,1.41917988,1991.5,1990.2,3.58705401]
[1772811587861,6.82702,1991.8,1990.4,3.58517873]
[1772811588157,1.41531802,1991.7,1990.4,3.58517873]
[1772811588456,1.84843749,1991.6,1990.4,3.58517873]
[1772811590857,6.576,1991.8,1990.5,3.44063166]
[1772811591160,1.69238836,1991.7,1990.5,3.44063166]
[1772811592659,1.93101404,1991.6,1990.5,3.44063166]
[1772811593657,8.2518437,1991.8,1990.5,3.44063166]
[1772811593960,1.6758437,1991.7,1990.5,3.44063166]
[1772811594157,1.68170775,1991.9,1990.5,3.44063166]
[1772811594659,1.68170775,1991.9,1990.5,3.69180166]
[1772811594660,0.00586405,1991.9,1990.5,3.69180166]
[1772811594854,0.00586405,1991.9,1990.9,3.43746566]
[1772811597465,8.26314467,1992.4,1991.1,4.09163467]
[1772811597966,1.6887816,1992.3,1991.1,4.09163467]
[1772811598563,0.00432206,1992.3,1991.1,4.09163467]
[1772811600367,1.76173094,1992.3,1991.1,4.09163467]
[1772811600764,2.00415754,1991.8,1991.1,4.09163467]
[1772811602076,0.00432206,1992.3,1991.1,4.09163467]
[1772811602077,1.75250051,1992.1,1991.1,4.09163467]
[1772811603269,1.75250051,1992.1,1991.1,3.68979467]
[1772811603872,2.40360873,1991.6,1990.9,4.00949894]
[1772811604768,2.14358521,1991.8,1990.9,4.00949894]
[1772811605167,2.39460521,1991.7,1990.7,4.00949894]
[1772811605369,2.143459,1991.3,1990.3,4.00949894]
[1772811605569,2.39039381,1991.4,1990.3,4.00949894]
[1772811607867,2.10606415,1991.8,1990.3,4.00949894]
[1772811608069,2.10606415,1991.8,1990.4,4.00949894]
[1772811608376,2.07846227,1991.9,1990.6,4.00949894]
[1772811608867,2.32521455,1992.0,1990.7,4.00949894]
[1772811609074,2.32521455,1992.0,1990.8,4.00949894]
[1772811610470,2.28975773,1991.3,1990.6,4.00949894]
[1772811610675,2.28975773,1991.3,1990.4,4.00949894]
[1772811611574,0.25108,1991.3,1990.4,4.00949894]
[1772811611969,2.27939261,1991.3,1990.4,4.00949894]
[1772811612371,0.25102,1991.8,1990.4,4.00949894]
[1772811612679,8.56041609,1991.7,1990.6,4.00949894]
[1772811612879,2.05846189,1991.5,1990.6,4.00949894]
[1772811613574,2.30939471,1991.4,1990.6,4.00949894]
[1772811613770,2.30939471,1991.4,1990.7,4.00949894]
[1772811613970,2.30939471,1991.4,1990.6,3.879]
[1772811614170,10.76188214,1991.9,1990.0,4.00949894]
[1772811614171,0.25116,1990.6,1990.0,4.00949894]
[1772811614376,4.36936166,1990.4,1989.8,4.00949894]
[1772811614782,4.11817166,1990.8,1989.8,4.00949894]
[1772811614980,4.11817166,1990.6,1989.8,4.00949894]
[1772811615279,4.12211738,1990.6,1989.8,4.01544909]
[1772811615870,4.11817166,1990.4,1989.8,0.00595015]
[1772811616076,4.11817166,1990.4,1989.5,4.00949894]
[1772811616676,4.11817166,1990.2,1989.5,4.00949894]
[1772811616872,4.11817166,1990.0,1989.0,4.00949894]
[1772811617176,4.11817166,1990.2,1989.0,4.01383544]
[1772811617376,4.36936166,1990.4,1989.0,4.01383544]
[1772811617577,4.36936166,1990.4,1989.1,4.00949894]
[1772811620177,4.11817166,1989.9,1989.1,4.00949894]
[1772811621179,4.11817166,1990.1,1989.1,4.00949894]
[1772811621381,4.11817166,1989.6,1988.5,4.00949894]
[1772811622176,0.25128,1989.7,1988.5,4.00949894]
[1772811622379,4.36945166,1989.7,1988.5,4.01453848]
[1772811625884,4.11817166,1989.5,1988.5,4.01453848]
[1772811626577,4.11817166,1989.7,1988.5,4.01453848]
[1772811626780,6.578,1990.0,1988.5,4.01453848]
[1772811626781,4.11817166,1989.9,1988.5,4.01453848]
[1772811627979,0.25126,1989.8,1988.5,4.01453848]
[1772811628185,4.11817166,1989.7,1988.5,4.01453848]
[1772811628385,4.11817166,1989.9,1988.5,4.01453848]
[1772811628586,4.11817166,1990.1,1988.7,4.00949894]
[1772811628878,4.36938166,1990.3,1988.9,4.00949894]
[1772811631079,0.25128,1989.7,1988.9,4.00949894]
[1772811631279,4.36945166,1989.7,1988.9,4.00949894]
[1772811631690,4.63391736,1990.2,1988.9,4.00949894]
[1772811634790,4.38269736,1990.2,1988.9,4.00949894]
[1772811635084,4.38269736,1990.0,1988.9,4.00949894]
[1772811636489,4.63394736,1989.9,1988.9,4.00949894]
[1772811638493,6.577,1990.0,1988.9,4.00949894]
[1772811638793,10.95969736,1990.0,1988.9,4.00949894]
[1772811639196,4.38269736,1989.9,1988.9,4.00949894]
[1772811639593,4.38269736,1990.1,1988.9,4.00949894]
[1772811644496,4.38269736,1990.1,1989.1,4.38536608]
[1772811645996,4.38269736,1990.3,1989.1,4.38536608]
[1772811646190,4.38269736,1990.3,1989.3,4.38536608]
[1772811646391,4.63389736,1990.4,1989.3,4.38536608]
[1772811654003,4.38269736,1990.0,1989.3,4.38536608]
[1772811654198,4.38269736,1990.0,1988.8,4.38536608]
[1772811657304,4.34162389,1989.8,1988.8,4.38536608]
[1772811662505,4.09724716,1989.6,1988.8,4.38536608]
[1772811662703,4.09724716,1989.7,1988.6,4.01958046]
[1772811662908,4.34849716,1989.9,1988.6,4.01958046]
[1772811663403,4.09724716,1989.9,1988.8,4.01958046]
[1772811663605,4.09724716,1989.7,1988.8,4.01958046]
[1772811663807,4.09724716,1989.5,1988.8,4.01958046]
[1772811665702,4.09724716,1989.1,1988.5,4.02462]
[1772811665903,0.00615399,1989.1,1988.5,4.02462]
[1772811666510,4.10340115,1989.1,1988.5,0.00503954]
[1772811667207,4.10340115,1989.1,1988.1,4.01958046]
[1772811667208,4.09724716,1988.7,1988.1,4.01958046]
[1772811667603,4.09724716,1988.7,1987.9,13.36358046]
[1772811667912,4.09724716,1988.7,1987.5,21.96391865]
[1772811667913,4.09724716,1988.5,1987.5,4.01958046]
[1772811668307,6.577,1988.9,1987.5,4.01958046]
[1772811668308,4.09724716,1988.7,1987.5,4.02542446]
[1772811668707,4.09724716,1988.7,1987.7,4.01958046]
[1772811669814,0.25751399,1989.1,1987.7,4.01958046]
[1772811669815,4.09724716,1989.0,1987.7,4.01958046]
[1772811670405,4.09724716,1989.0,1987.9,4.01958046]
[1772811672908,4.09724716,1989.0,1988.1,4.01958046]
[1772811673214,4.10340115,1989.1,1988.3,4.01958046]
[1772811674213,4.10340115,1989.1,1988.4,4.01958046]
[1772811674214,0.00615399,1989.1,1988.4,4.01958046]
[1772811674412,4.09724716,1989.5,1988.4,4.01958046]
[1772811674610,4.09724716,1990.0,1988.4,4.01958046]
[1772811674920,4.09724716,1989.6,1988.5,4.01958046]
[1772811675416,4.10338637,1989.6,1988.5,4.01958046]
[1772811676609,4.10338637,1989.6,1988.5,4.27101046]
[1772811677513,4.10338637,1989.6,1988.5,4.01958046]
[1772811678312,4.09724716,1989.4,1988.5,4.01958046]
[1772811680319,4.10338637,1989.6,1988.7,4.01958046]
[1772811680618,4.10338637,1989.6,1988.8,4.01958046]
[1772811680818,4.35467637,1989.6,1988.8,4.01958046]
[1772811681021,4.09724716,1989.2,1988.4,4.01958046]
[1772811681318,3.41911112,1989.4,1988.4,4.01958046]
[1772811681520,3.42525033,1989.6,1988.4,4.01958046]
[1772811681721,3.42525033,1989.6,1988.6,4.01958046]
[1772811682526,0.00613921,1989.6,1988.8,4.01958046]
[1772811682722,0.00613921,1989.6,1988.9,4.01958046]
[1772811682922,0.00613921,1989.6,1988.9,4.02558678]
[1772811683330,3.5227765,1990.0,1989.0,7.89858046]
[1772811683523,3.5227765,1990.0,1989.2,4.01958046]
[1772811684122,3.51244667,1989.8,1989.1,3.879]
[1772811684320,3.5089812,1989.6,1989.1,3.879]
[1772811684619,3.5089812,1989.6,1989.1,4.01958046]
[1772811687527,3.5089812,1989.6,1988.9,4.02558678]
[1772811687928,3.47237955,1989.4,1988.9,4.02558678]
[1772811688128,3.47237955,1989.7,1988.9,4.02558678]
[1772811688322,3.518029,1989.8,1988.9,4.02558678]
[1772811688924,0.00559801,1989.8,1989.1,4.01958046]
[1772811689121,0.00559801,1989.8,1989.0,3.879]
[1772811689122,3.50782036,1989.8,1989.0,3.879]
[1772811689424,3.50782036,1989.8,1988.4,6.367]
[1772811689425,4.43720214,1989.4,1987.9,4.01958046]
[1772811689720,0.27115231,1989.1,1987.9,4.01958046]
[1772811690324,0.27115231,1989.1,1987.9,4.02513003]
[1772811690824,0.28211173,1988.9,1987.9,4.02513003]
[1772811692527,0.27131528,1988.7,1987.9,4.02513003]
[1772811693327,0.51413146,1988.6,1987.9,4.02513003]
[1772811693523,0.26271146,1988.5,1987.9,4.02513003]
[1772811694622,0.26271146,1988.5,1987.9,0.00554957]
[1772811694829,0.24618958,1988.3,1987.7,4.48604264]
[1772811695730,0.25060525,1988.3,1987.7,4.49187866]
[1772811696232,0.00441567,1988.3,1987.7,4.49187866]
[1772811696426,0.25147,1988.2,1987.7,4.49187866]
[1772811696620,0.17964605,1988.1,1987.7,4.49187866]
[1772811697432,0.25147,1988.2,1987.7,4.49187866]
[1772811697733,0.16292945,1988.1,1987.7,4.49187866]
[1772811697927,0.16292945,1988.1,1987.5,4.48604264]
[1772811698830,0.16292945,1988.1,1987.5,4.49152899]
[1772811699328,0.16292945,1988.1,1987.5,0.00548635]
[1772811699527,0.15766693,1987.9,1987.2,4.48604264]
[1772811699930,0.25152,1987.8,1987.2,4.48604264]
[1772811700235,0.14947944,1987.7,1987.2,4.48604264]
[1772811700434,0.14947944,1987.7,1987.2,4.49192275]
[1772811700635,0.14947944,1987.7,1987.2,0.00588011]
[1772811700930,0.14947944,1987.7,1987.2,4.49192275]
[1772811701736,0.17481643,1987.5,1986.0,4.48604264]
[1772811702732,0.17481643,1987.5,1986.2,4.48604264]
[1772811703034,0.23059814,1987.9,1986.4,4.48604264]
[1772811703336,0.23034933,1987.7,1986.4,4.48604264]
[1772811703529,0.23034933,1987.7,1986.5,4.48604264]
[1772811703726,0.25152,1987.8,1986.5,4.48604264]
[1772811705131,0.222159,1987.9,1986.7,4.48604264]
[1772811705734,0.14536009,1988.1,1986.7,4.48604264]
[1772811706335,0.25147,1988.2,1986.9,4.48604264]
[1772811706742,0.43164419,1988.2,1986.9,8.23379291]
[1772811706939,0.43164419,1988.2,1987.0,4.48604264]
[1772811707433,0.17993039,1987.9,1987.0,4.48604264]
[1772811708231,0.25149,1988.0,1987.0,4.48604264]
[1772811708435,0.64213262,1988.0,1987.0,4.48604264]
[1772811708835,0.38254603,1987.9,1987.0,4.48604264]
[1772811709942,0.25152,1987.8,1987.0,4.48604264]
[1772811710135,0.37401078,1987.7,1987.0,4.48604264]
[1772811710335,0.64641409,1987.8,1987.0,4.48604264]
[1772811710535,0.39489409,1987.7,1987.0,4.48604264]
[1772811710940,0.38683391,1987.5,1987.0,4.48604264]
[1772811712538,0.25154,1987.6,1987.0,4.48604264]
[1772811713745,0.60722323,1987.6,1987.0,4.48604264]
[1772811714044,0.35568323,1987.5,1986.8,4.48604264]
[1772811714642,0.33207347,1987.3,1986.2,4.48604264]
[1772811714844,0.33207347,1987.0,1986.2,4.48604264]
[1772811715044,0.33134385,1987.5,1986.2,4.48604264]
[1772811716949,0.30200099,1987.7,1986.2,4.48604264]
[1772811718345,0.25153,1987.8,1986.4,4.26307259]
[1772811718546,0.3017386,1987.9,1986.6,4.26307259]
[1772811718951,0.54540903,1987.8,1986.6,4.26307259]
[1772811719845,0.28564553,1988.0,1986.6,4.26307259]
[1772811720050,0.28564553,1988.2,1986.8,4.26327991]
[1772811720753,0.29087055,1987.8,1986.8,4.26327991]
[1772811721150,0.29087055,1987.6,1986.8,4.26327991]
[1772811721453,0.25155,1987.5,1986.8,4.26327991]
[1772811721651,0.28811324,1987.2,1986.8,4.26327991]
[1772811722247,0.28811324,1987.2,1986.1,4.35505539]
[1772811722759,0.60342887,1987.1,1986.1,4.35505539]
[1772811723257,0.25161,1987.1,1986.1,4.35505539]
[1772811723557,0.35133034,1987.0,1986.1,4.35505539]
[1772811724158,0.34354523,1987.4,1986.1,4.35505539]
[1772811724352,0.45916334,1987.6,1986.1,4.35505539]
[1772811724552,6.48701152,1987.5,1986.1,4.35505539]
[1772811724860,0.19983551,1987.5,1986.3,4.35505539]
[1772811725362,0.25155,1987.6,1986.3,4.35505539]
[1772811725958,0.1917195,1987.5,1986.3,4.35505539]
[1772811727163,0.21699244,1987.3,1986.3,4.35505539]
[1772811727359,0.25157,1987.4,1986.3,4.35505539]
[1772811727858,0.46046293,1987.4,1986.3,4.35505539]
[1772811728260,0.20889293,1987.3,1986.3,4.35505539]
[1772811729358,0.25157,1987.4,1986.3,4.35505539]
[1772811729761,0.13529329,1987.7,1986.3,4.35505539]
[1772811729967,6.63025543,1987.6,1986.3,4.35505539]
[1772811730265,6.49593273,1987.5,1986.3,4.35505539]
[1772811730466,0.13529329,1987.6,1986.3,4.35505539]
[1772811730666,6.49624692,1987.5,1986.3,4.35505539]
[1772811730965,0.13529329,1987.6,1986.3,4.35505539]
[1772811731164,0.09965337,1987.8,1986.5,4.35505539]
[1772811731860,4.18588214,1988.1,1986.4,0.25169]
[1772811731861,0.0858295,1988.1,1986.7,4.35505539]
[1772811732061,6.49587127,1988.0,1986.7,4.35505539]
[1772811732266,4.27171164,1988.2,1986.7,4.35505539]
[1772811732460,6.74712495,1988.1,1986.7,4.35505539]
[1772811732666,0.14577797,1987.9,1986.7,4.35505539]
[1772811732866,0.14577797,1987.8,1986.7,4.35505539]
[1772811733263,0.39666351,1987.5,1986.7,4.35505539]
[1772811733566,0.14511351,1987.4,1986.7,4.35505539]
[1772811734664,0.25158,1987.3,1986.7,4.35505539]
[1772811734864,0.1488722,1987.2,1986.7,4.35505539]
[1772811735262,0.25158,1987.3,1986.7,4.35505539]
[1772811735968,0.13520721,1987.7,1986.7,4.35505539]
[1772811736267,6.48158777,1987.6,1986.7,4.35505539]
[1772811736567,0.13520721,1987.7,1986.7,4.35505539]
[1772811736759,6.48200559,1987.6,1986.7,4.35505539]
[1772811736961,0.25154,1987.6,1986.7,4.35505539]
[1772811737762,6.59723515,1987.5,1986.7,4.35505539]
[1772811737962,0.25154,1987.6,1986.7,4.35505539]
[1772811738163,6.48448478,1987.5,1986.7,4.35505539]
[1772811738466,0.25154,1987.6,1986.7,4.35505539]
[1772811738670,0.10483263,1987.5,1986.7,4.35505539]
[1772811738969,0.25154,1987.6,1986.7,4.35505539]
[1772811740164,0.09150764,1987.5,1986.7,4.35505539]
[1772811740562,0.25154,1987.6,1986.7,4.35505539]
[1772811741667,0.31090377,1987.6,1986.7,4.35505539]
[1772811742069,0.25154,1987.6,1986.7,4.35505539]
[1772811743271,0.29746734,1987.6,1986.7,4.35505539]
[1772811743471,0.04592734,1987.5,1986.7,4.35505539]
[1772811743867,0.25157,1987.4,1986.7,4.35505539]
[1772811744469,0.18775023,1987.7,1986.7,4.35505539]
[1772811744772,6.48716596,1987.6,1986.7,4.35505539]
[1772811745072,0.17554595,1987.5,1986.7,4.35505539]
[1772811745269,0.17466281,1987.7,1986.7,4.35505539]
[1772811745471,10.76588214,1987.8,1986.7,4.35505539]
[1772811745472,6.66228702,1987.6,1986.7,4.35505539]
[1772811745772,0.25165,1986.8,1986.1,4.35505539]
[1772811745968,0.25562278,1986.8,1986.1,4.35505539]
[1772811746472,0.00397278,1986.8,1986.1,4.35505539]
[1772811746672,0.17009419,1986.8,1986.1,4.35505539]
[1772811747268,0.00397278,1986.8,1986.1,4.35505539]
[1772811747667,0.15724648,1986.8,1986.1,4.35505539]
[1772811747874,0.00397278,1986.8,1986.1,4.35505539]
[1772811748573,0.14107462,1986.8,1986.1,4.35505539]
[1772811748969,0.00397278,1986.8,1986.1,4.35505539]
[1772811749175,0.25166,1986.7,1986.1,4.35505539]
[1772811750971,0.11599897,1986.8,1986.1,4.35505539]
[1772811751379,0.11202619,1986.7,1986.1,4.35505539]
[1772811751573,0.25562278,1986.8,1986.1,4.35505539]
[1772811751772,0.34717649,1986.8,1986.1,4.35505539]
[1772811752275,0.25562278,1986.8,1986.1,4.35505539]
[1772811753375,0.31569845,1986.6,1986.1,4.35505539]
[1772811753575,0.25167,1986.6,1986.1,4.35505539]
[1772811753775,0.05658882,1986.8,1986.1,4.35505539]
[1772811754081,0.05261604,1986.6,1986.1,4.35505539]
[1772811754275,0.05261604,1986.6,1986.0,0.0042469]
[1772811754276,0.25168,1986.5,1985.2,4.22752603]
[1772811754475,2.73894594,1986.8,1985.2,4.22752603]
[1772811754476,13.39957618,1986.8,1985.2,4.22752603]
[1772811754677,10.66460302,1986.8,1985.2,4.22752603]
[1772811754877,4.07963024,1986.7,1985.4,3.97567603]
[1772811755275,4.33130024,1986.7,1985.4,3.98086685]
[1772811761286,4.33134024,1986.3,1985.6,3.97567603]
[1772811762279,4.07963024,1986.6,1985.6,3.97567603]
[1772811762484,4.07963024,1986.4,1985.6,3.97567603]
[1772811764785,0.25168,1986.5,1985.6,3.97567603]
[1772811765182,4.33131024,1986.5,1985.6,3.97567603]
[1772811769089,4.07963024,1986.2,1985.4,3.98086685]
[1772811769490,0.25173,1986.1,1985.4,3.98086685]
[1772811769789,4.07963024,1986.4,1985.4,3.98086685]
[1772811771092,4.33131024,1986.6,1985.4,3.98086685]
[1772811772191,4.08360302,1986.8,1985.4,4.23268685]
[1772811772586,4.07963024,1987.2,1985.9,3.97567603]
[1772811772786,4.07963024,1987.2,1986.1,3.97567603]
[1772811772988,4.07963024,1987.5,1986.3,3.97567603]
[1772811773681,4.08469672,1987.5,1986.3,3.97567603]
[1772811773886,4.08469672,1987.5,1986.5,3.97567603]
[1772811774192,4.07963024,1987.3,1986.5,3.97567603]
[1772811775689,4.22359366,1987.1,1986.3,4.04149824]
[1772811778394,4.22359366,1986.9,1986.3,4.04149824]
[1772811779188,4.22359366,1987.1,1986.3,4.04149824]
[1772811780695,4.22359366,1987.4,1986.3,4.04149824]
[1772811782790,3.87322259,1987.2,1986.3,4.04149824]
[1772811782994,3.87322259,1987.0,1986.3,4.04149824]
[1772811784092,3.87322259,1987.4,1986.3,4.04149824]
[1772811784298,3.87322259,1987.4,1986.4,4.04484283]
[1772811784893,0.00506648,1987.5,1986.6,4.04484283]
[1772811785097,0.00506648,1987.5,1986.8,4.04484283]
[1772811785297,3.87828907,1987.5,1986.8,4.05013931]
[1772811786697,3.87322259,1987.3,1986.8,4.05013931]
[1772811786896,0.25157,1987.4,1986.8,4.05013931]
[1772811787494,0.00506648,1987.5,1986.8,4.05013931]
[1772811789392,5.98200793,1987.8,1986.8,4.05013931]
[1772811790097,3.87322259,1987.7,1986.8,13.17413931]
[1772811790298,3.87322259,1987.7,1986.9,4.04484283]
[1772811790600,3.87322259,1987.3,1986.8,4.05013931]
[1772811791395,3.87322259,1987.3,1986.6,4.04484283]
[1772811791600,3.87322259,1987.1,1986.4,4.04484283]
[1772811792400,3.87322259,1987.1,1986.4,4.05074038]
[1772811792594,4.12476259,1987.6,1986.4,4.05074038]
[1772811792997,4.12476259,1987.6,1986.6,4.04484283]
[1772811793697,4.12476259,1987.6,1986.7,4.04484283]
[1772811795591,3.87322259,1987.6,1986.7,4.04484283]
[1772811795796,3.87322259,1987.2,1986.5,4.04484283]
[1772811796891,3.87322259,1987.0,1986.5,4.04484283]
[1772811797096,3.87322259,1987.0,1986.4,4.05074038]
[1772811798802,0.25161,1987.1,1986.4,4.05074038]
[1772811798999,4.12483259,1987.1,1986.4,4.05074038]
[1772811799198,3.87322259,1987.1,1986.4,4.05074038]
[1772811802102,3.87322259,1986.9,1986.4,4.05074038]
[1772811802307,3.87322259,1986.9,1986.4,0.00589755]
[1772811802701,3.87322259,1986.9,1986.4,4.05074038]
[1772811803103,3.87322259,1987.3,1986.4,4.05074038]
[1772811803300,3.87322259,1987.1,1986.4,4.05074038]
[1772811803909,3.87322259,1987.4,1986.4,4.05074038]
[1772811804206,3.87322259,1987.4,1986.5,4.04484283]
[1772811805605,6.582,1987.5,1986.4,4.05074038]
[1772811805606,3.87322259,1986.8,1986.4,4.05074038]
[1772811806006,3.87322259,1986.9,1986.4,4.05074038]
[1772811806208,3.87322259,1987.1,1986.4,4.05074038]
[1772811806501,6.83358,1987.3,1986.4,4.05074038]
[1772811806502,3.87322259,1986.9,1986.4,0.00589755]
[1772811806809,3.87322259,1986.2,1985.3,4.04484283]
[1772811807211,4.12495259,1986.1,1985.3,4.04484283]
[1772811807610,4.12495259,1986.1,1985.3,0.00591064]
[1772811807611,3.87322259,1985.9,1985.3,0.00591064]
[1772811807809,3.87322259,1985.7,1984.9,4.04484283]
[1772811808814,3.87322259,1985.7,1984.9,4.04900397]
[1772811809213,3.87322259,1985.3,1984.2,4.04484283]
[1772811809710,0.25182,1985.4,1984.2,4.04484283]
[1772811809711,3.87322259,1985.6,1984.3,4.04484283]
[1772811810208,3.87322259,1985.6,1984.3,4.04979916]
[1772811810512,4.12503259,1985.6,1984.3,4.04979916]
[1772811811408,6.32292626,1985.5,1984.3,4.04979916]
[1772811811613,4.12504259,1985.4,1984.3,0.00495633]
[1772811812210,3.83592659,1984.8,1982.7,13.09402989]
[1772811812513,3.83592659,1984.6,1982.9,4.17564299]
[1772811812705,3.83592659,1984.5,1982.9,4.17564299]
[1772811813308,3.84140004,1984.5,1982.9,4.52547913]
[1772811813712,3.84140004,1984.5,1982.9,4.18093256]
[1772811814109,3.84140004,1984.5,1983.1,3.92350299]
[1772811814416,0.00547345,1984.5,1983.3,3.92350299]
[1772811814606,3.83592659,1984.9,1983.7,3.92350299]
[1772811815616,3.84009579,1984.9,1983.7,3.92350299]
[1772811816412,3.83592659,1984.7,1983.7,3.92350299]
[1772811816710,3.83592659,1984.3,1983.0,3.92350299]
[1772811817519,3.83592659,1984.1,1983.0,3.92350299]
[1772811818921,3.83592659,1984.1,1981.7,2.73594909]
[1772811818922,3.83592659,1983.4,1982.5,3.92350299]
[1772811819121,3.83592659,1983.4,1982.1,4.62658078]
[1772811819329,3.83592659,1983.3,1982.1,4.62658078]
[1772811819827,3.84091995,1983.3,1982.1,4.63280915]
[1772811820423,3.83592659,1983.1,1982.1,0.70930616]
[1772811820826,2.56430115,1983.3,1982.1,0.70930616]
[1772811820827,3.83592659,1982.9,1982.1,0.70930616]
[1772811821721,3.83592659,1982.9,1982.1,4.63280915]
[1772811821926,0.00499336,1983.3,1982.1,4.63280915]
[1772811822229,3.84091995,1983.3,1982.1,4.63280915]
[1772811823931,0.00499336,1983.3,1982.1,4.88503915]
[1772811824131,3.83592659,1984.2,1982.6,0.25218]
[1772811824429,3.83592659,1984.2,1982.7,3.92350299]
[1772811825327,3.83592659,1984.2,1982.9,3.92350299]
[1772811825328,0.00381602,1984.2,1982.9,3.92350299]
[1772811826131,3.4264201,1984.2,1983.1,3.92350299]
[1772811828726,3.53989064,1983.8,1982.9,3.92350299]
[1772811832037,3.49586196,1984.1,1982.9,3.92350299]
[1772811833536,3.44541444,1983.9,1982.9,3.92350299]
[1772811833736,3.43266157,1983.7,1982.9,3.92350299]
[1772811835740,3.40580658,1983.5,1982.4,3.83619154]
[1772811836038,3.40580658,1983.3,1982.4,3.83619154]
[1772811837540,3.37237155,1983.5,1982.4,3.83619154]
[1772811838340,3.30791237,1983.7,1982.4,3.83619154]
[1772811838530,3.30791237,1983.6,1982.4,3.83619154]
[1772811838936,3.29572864,1983.4,1982.4,3.83619154]
[1772811840542,3.03770498,1983.6,1982.4,3.83619154]
[1772811841441,3.28975498,1983.6,1982.4,3.83619154]
[1772811841637,3.00802599,1984.0,1982.6,3.58396835]
[1772811841948,3.00802599,1984.0,1983.0,3.58396835]
[1772811842146,0.25199,1984.1,1983.0,3.58396835]
[1772811842342,3.01184201,1984.2,1983.0,3.58396835]
[1772811844042,3.20720622,1984.1,1983.0,3.58396835]
[1772811844940,2.98515059,1983.7,1982.8,3.58396835]
[1772811845141,0.25204,1983.8,1982.8,3.58396835]
[1772811845443,2.98515059,1984.1,1982.8,3.83610835]
[1772811845844,0.25578602,1984.2,1982.8,3.83610835]
[1772811846244,3.22913175,1984.2,1982.8,3.83610835]
[1772811846443,3.22913175,1984.2,1983.0,3.58396835]
[1772811846947,3.01150658,1984.0,1983.0,3.58396835]
[1772811847447,3.2672926,1984.2,1983.0,3.58396835]
[1772811847746,0.25578602,1984.2,1983.0,3.58396835]
[1772811847948,3.2555883,1984.2,1983.0,3.58396835]
[1772811848344,3.2555883,1984.2,1983.1,3.58396835]
[1772811849048,0.00381602,1984.2,1983.1,3.58396835]
[1772811849643,0.00381602,1984.2,1983.3,3.58396835]
[1772811850551,3.38092747,1984.2,1983.3,3.58396835]
[1772811850948,0.25578602,1984.2,1983.3,3.58396835]
[1772811851252,3.369787,1984.2,1983.3,3.58396835]
[1772811851745,0.00381602,1984.2,1983.3,3.58396835]
[1772811852046,3.35819234,1984.2,1983.3,3.58396835]
[1772811853645,0.00381602,1984.2,1983.3,3.58396835]
[1772811853848,3.07687503,1984.6,1983.3,3.83605835]
[1772811854054,2.82877105,1985.0,1983.7,3.58396835]
[1772811854254,2.82877105,1985.0,1983.2,22.11420925]
[1772811854255,2.82877105,1984.8,1983.9,3.58396835]
[1772811854844,4.18588214,1985.2,1983.9,3.58817908]
[1772811854845,2.81542707,1984.6,1983.9,3.58817908]
[1772811855051,2.81542707,1984.4,1983.9,0.00421073]
[1772811855351,3.06724901,1984.1,1983.3,3.58396835]
[1772811856251,3.06724901,1984.1,1983.3,3.58852768]
[1772811858455,2.71419433,1983.9,1983.3,3.58852768]
[1772811859356,2.7037425,1984.1,1983.3,3.58852768]
[1772811859755,2.9557325,1984.1,1983.3,3.58852768]
[1772811859956,2.69324772,1984.4,1983.3,3.58852768]
[1772811860147,2.69324772,1984.5,1983.3,3.58852768]
[1772811860351,2.9492576,1984.4,1983.5,3.58396835]
[1772811862555,6.93249182,1984.7,1983.5,3.58396835]
[1772811862556,2.68923509,1984.6,1983.5,3.58396835]
[1772811862854,2.74660968,1984.7,1983.5,3.58396835]
[1772811862855,9.14504067,1984.5,1983.5,3.58396835]
[1772811863051,2.67902812,1984.7,1983.5,3.58396835]
[1772811863356,0.00440681,1984.8,1983.5,3.58396835]
[1772811864460,0.00440681,1984.8,1983.7,3.58396835]
[1772811864660,0.00440681,1984.8,1983.9,3.58396835]
[1772811866557,2.91341053,1984.8,1984.0,3.58396835]
[1772811868853,0.00440681,1984.8,1984.0,3.58396835]
[1772811869057,2.8684299,1984.8,1984.0,3.58396835]